{"text_format":"1","workbook":"xlsx","n_sheets":2,"sheets":["AC SYSTEMS","PRINT"],"not_rendered":{"charts":0,"images":1,"macros":1,"external_links":0,"defined_names":0,"comments":0,"pivot_tables":0},"unopened":[],"bounds":{"document_bytes":16777216,"sheet_cells":100000,"rows_first":2000,"rows_last":500,"rows_between":2000,"halvings":0,"cell_chars":16384,"cell_head_chars":4096},"cells_cut":0,"cells_raw":0,"read":"whole","date_system":"1900"}

{"sheet":"AC SYSTEMS","index":0,"n_rows":149,"n_cols":17,"rows_kept":149,"cut":false,"hidden":false,"merged":[[24,2,24,4],[25,2,25,4],[40,3,40,4],[26,2,26,3],[1,2,1,4],[2,3,2,4],[8,3,8,4],[16,2,16,4],[7,3,7,4],[15,3,15,4],[27,2,27,3],[28,2,28,3],[29,2,29,3],[4,2,4,3],[5,2,5,3],[6,2,6,3],[53,3,53,4],[127,3,127,4],[148,2,148,4],[56,2,56,4],[54,2,54,4],[128,2,128,4],[145,3,145,4],[57,2,57,3],[58,2,58,3],[59,2,59,3],[60,2,60,3],[61,2,61,3],[62,2,62,3],[63,2,63,3],[64,2,64,3],[65,2,65,3],[71,2,71,3],[72,2,72,3],[73,2,73,3],[74,2,74,3],[75,2,75,3],[66,2,66,3],[67,2,67,3],[68,2,68,3],[49,2,49,3],[50,2,50,3],[51,2,51,3],[52,2,52,3],[42,2,42,3],[46,2,46,3],[48,2,48,4],[47,2,47,3],[44,2,44,3],[45,2,45,3],[43,2,43,4],[41,2,41,3],[35,2,35,3],[36,2,36,3],[37,2,37,3],[38,2,38,3],[39,2,39,3],[30,2,30,3],[31,2,31,3],[32,2,32,3],[33,2,33,3],[34,2,34,3],[69,2,69,3],[70,2,70,3],[81,2,81,3],[82,2,82,3],[83,2,83,3],[84,2,84,3],[85,2,85,3],[76,2,76,3],[77,2,77,3],[78,2,78,3],[79,2,79,3],[80,2,80,3],[91,2,91,3],[92,2,92,3],[93,2,93,3],[94,2,94,3],[95,2,95,3],[86,2,86,3],[87,2,87,3],[88,2,88,3],[89,2,89,3],[90,2,90,3],[101,2,101,3],[102,2,102,3],[103,2,103,3],[104,2,104,3],[105,2,105,3],[96,2,96,3],[97,2,97,3],[98,2,98,3],[99,2,99,3],[100,2,100,3],[111,2,111,3],[112,2,112,3],[113,2,113,3],[114,2,114,3],[115,2,115,3],[106,2,106,3],[107,2,107,3],[108,2,108,3],[109,2,109,3],[110,2,110,3],[126,2,126,3],[121,2,121,3],[122,2,122,3],[123,2,123,3],[124,2,124,3],[125,2,125,3],[116,2,116,3],[117,2,117,3],[118,2,118,3],[119,2,119,3],[120,2,120,3]]}
[null,null,null,null,null,null,null,null,"Drop Down lists "]
[null,null,"Pre-Configured Form for A/C Systems",null,null,null,null,null,"YES","ON","RETURN AIR","2 - SPEED FAN","CONSTANT","DISABLED","WIRELESS SENSOR"]
[null,null,null,null,null,null,null,{"$f":"IF(E21=\"Yes\",IF(E14=0,\"S0\",\"H0\"),\"H0\")","v":"H0"},"NO","OFF","MASTER","3 - SPEED FAN","OPEN / CLOSED","3 MONTHS","WIRED SENSOR",0,0]
[null,null,null,null,null,null,null,{"$f":"IF(E21=\"Yes\", IF(E14=1, \"S1\", \"H1\"), \"H1\")","v":"H1"},null,null,"ZONES","4 - SPEED FAN","CLIMATE CONTROL","6 MONTHS","ISENSE CONTROLLER",1,1]
[null,null,"Purchase Order Number",null,"ENTER TEXT",null,null,{"$f":"IF(E21=\"Yes\", IF(E14=2, \"S2\", \"H2\"), \"H2\")","v":"H2"},null,null,null,"VARIABLE SPEED FAN",null,"12 MONTHS","TOUCH SCREEN",2,2]
[null,null,"Company Name",null,"ENTER TEXT",null,null,{"$f":"IF(E21=\"Yes\", IF(E14=3, \"S3\", \"H3\"), \"H3\")","v":"H3"},null,null,null,null,null,null,null,3,3]
[null,null,"Clients Install Address",null,"ENTER TEXT",null,null,{"$f":"IF(E21=\"Yes\", IF(E14=4, \"S4\", \"H4\"), \"H4\")","v":"H4"},null,null,null,null,null,null,null,4,4]
[null,null,null,null,null,null,null,{"$f":"IF(E21=\"Yes\", IF(E14=5, \"S5\", \"H5\"), \"H5\")","v":"H5"},null,null,null,null,null,null,null,5,5]
[null,null,null,null,null,null,null,{"$f":"IF(E21=\"Yes\", IF(E14=6, \"S6\", \"H6\"), \"H6\")","v":"H6"},null,null,null,null,null,null,null,6,6]
[null,null,null,null,null,null,null,{"$f":"IF(E21=\"Yes\", IF(E14=7, \"S7\", \"H7\"), \"H7\")","v":"H7"},null,null,null,null,null,null,null,7,7]
[null,null,"Address\\Client Name for Tag Line 1","[ Max 24 Characters ]","ENTER TEXT",null,null,{"$f":"IF(E21=\"Yes\", IF(E14=8, \"S8\", \"H8\"), \"H8\")","v":"H8"},null,null,null,null,null,null,null,8,8]
[null,null,"System Name for Tag Line 2","[ Max 24 Characters ]","ENTER TEXT",null,null,{"$f":"IF(E21=\"Yes\", IF(E14=9, \"S9\", \"H9\"), \"H9\")","v":"H9"},null,null,null,null,null,null,null,9,9]
[null,null,"iSave Enabled","[ Yes / No ]","NO",null,null,{"$f":"IF(E21=\"Yes\", IF(E14=10, \"S10\", \"H10\"), \"H10\")","v":"H10"},null,null,null,null,null,null,null,10,10]
[null,null,"Number of Zones","[Min 0 – Max 14]",8,null,null,{"$f":"IF(E21=\"Yes\", IF(E14=11, \"S11\", \"H11\"), \"H11\")","v":"H11"},null,null,null,null,null,null,null,11,11]
[null,null,"Number of Constants","[Min 0 – Max 14]",1,null,null,{"$f":"IF(E21=\"Yes\", IF(E14=12, \"S12\", \"H12\"), \"H12\")","v":"H12"},null,null,null,null,null,null,null,12,12]
[null,null,null,null,null,null,null,{"$f":"IF(E21=\"Yes\", IF(E14=13, \"S13\", \"H13\"), \"H13\")","v":"H13"},null,null,null,null,null,null,null,13]
[null,null,null,null,null,null,null,{"$f":"IF(E21=\"Yes\", IF(E14=14, \"S14\", \"H14\"), \"H14\")","v":"H14"},null,null,null,null,null,null,null,14]
[]
[null,null,"Controlling Sensor","[ AC Unit Sensor ]","DROP DOWN LIST CHOICE ----->"]
[null,null,"Unit Auto Off","[ On / Off ]","OFF"]
[null,null,"Fan Auto Mode","[ Yes / No ]","NO"]
[null,null,"Unit Capacity(kW)","[ Min 3 – Max 50 ]",14]
[null,null,"Fan Airflow (Litres/Second)","[Min 0 - Max 5000]",1000]
[null,null,"Select Fan Type","[ Fan Speeds ]","DROP DOWN LIST CHOICE ----->"]
[null,null,"Zone Area Setup"]
[null,null,"[ Min 1 - Max 250 ]  [Whole Numbers Only ]"]
[null,null,"Zone 1 Area m2",null,0]
[null,null,"Zone 2 Area m2",null,0]
[null,null,"Zone 3 Area m2",null,0]
[null,null,"Zone 4 Area m2",null,0]
[null,null,"Zone 5 Area m2",null,0]
[null,null,"Zone 6 Area m2",null,0]
[null,null,"Zone 7 Area m2",null,0]
[null,null,"Zone 8 Area m2",null,0]
[null,null,"Zone 9 Area m2",null,0]
[null,null,"Zone 10 Area m2",null,0]
[null,null,"Zone 11 Area m2",null,0]
[null,null,"Zone 12 Area m2",null,0]
[null,null,"Zone 13 Area m2",null,0]
[null,null,"Zone 14 Area m2",null,0]
[]
[null,null,"Master/Slave Options",null,"[ Open Options ]"]
[null,null,"[ only if third party control is included in the system ]",null,"NO"]
[null,null,"iZONE Unit Control"]
[null,null,"ON/OFF",null,"On"]
[null,null,"MODE",null,"On"]
[null,null,"FAN",null,"On"]
[null,null,"SETPOINT",null,"On"]
[null,null,"Other Unit Control"]
[null,null,"ON/OFF",null,"Off"]
[null,null,"MODE",null,"Off"]
[null,null,"FAN",null,"Off"]
[null,null,"SETPOINT",null,"Off"]
[]
[]
[]
[null,null,"[ Max 12 Characters for Zone Name ] [ Case Sensitive ]"]
[null,null,"Zone 1 Name",null,"ENTER TEXT"]
[null,null,"Zone Type",null,"DROP DOWN LIST CHOICE ----->"]
[null,null,"Constant Number",null,1]
[null,null,"Hide Constant \\ Bypass",null,"NO"]
[null,null,"Sensor Type",null,"DROP DOWN LIST CHOICE ----->"]
[null,null,"Zone 2 Name",null,"ENTER TEXT"]
[null,null,"Zone Type",null,"DROP DOWN LIST CHOICE ----->"]
[null,null,"Constant Number",null,0]
[null,null,"Hide Constant \\ Bypass",null,"NO"]
[null,null,"Sensor Type",null,"DROP DOWN LIST CHOICE ----->"]
[null,null,"Zone 3 Name",null,"ENTER TEXT"]
[null,null,"Zone Type",null,"DROP DOWN LIST CHOICE ----->"]
[null,null,"Constant Number",null,0]
[null,null,"Hide Constant \\ Bypass",null,"No"]
[null,null,"Sensor Type",null,"WIRELESS SENSOR"]
[null,null,"Zone 4 Name",null,"ENTER TEXT"]
[null,null,"Zone Type",null,"DROP DOWN LIST CHOICE ----->"]
[null,null,"Constant Number",null,0]
[null,null,"Hide Constant \\ Bypass",null,"No"]
[null,null,"Sensor Type",null,"DROP DOWN LIST CHOICE ----->"]
[null,null,"Zone 5 Name",null,"ENTER TEXT"]
[null,null,"Zone Type",null,"DROP DOWN LIST CHOICE ----->"]
[null,null,"Constant Number",null,0]
[null,null,"Hide Constant \\ Bypass",null,"No"]
[null,null,"Sensor Type",null,"DROP DOWN LIST CHOICE ----->"]
[null,null,"Zone 6 Name",null,"ENTER TEXT"]
[null,null,"Zone Type",null,"DROP DOWN LIST CHOICE ----->"]
[null,null,"Constant Number",null,0]
[null,null,"Hide Constant \\ Bypass",null,"No"]
[null,null,"Sensor Type",null,"DROP DOWN LIST CHOICE ----->"]
[null,null,"Zone 7 Name",null,"ENTER TEXT"]
[null,null,"Zone Type",null,"DROP DOWN LIST CHOICE ----->"]
[null,null,"Constant Number",null,0]
[null,null,"Hide Constant \\ Bypass",null,"No"]
[null,null,"Sensor Type",null,"DROP DOWN LIST CHOICE ----->"]
[null,null,"Zone 8 Name",null,"ENTER TEXT"]
[null,null,"Zone Type",null,"DROP DOWN LIST CHOICE ----->"]
[null,null,"Constant Number",null,0]
[null,null,"Hide Constant \\ Bypass",null,"No"]
[null,null,"Sensor Type",null,"DROP DOWN LIST CHOICE ----->"]
[null,null,"Zone 9 Name",null,"ENTER TEXT"]
[null,null,"Zone Type",null,"DROP DOWN LIST CHOICE ----->"]
[null,null,"Constant Number",null,0]
[null,null,"Hide Constant \\ Bypass",null,"No"]
[null,null,"Sensor Type",null,"DROP DOWN LIST CHOICE ----->"]
[null,null,"Zone 10 Name",null,"ENTER TEXT"]
[null,null,"Zone Type",null,"DROP DOWN LIST CHOICE ----->"]
[null,null,"Constant Number",null,0]
[null,null,"Hide Constant \\ Bypass",null,"No"]
[null,null,"Sensor Type",null,"DROP DOWN LIST CHOICE ----->"]
[null,null,"Zone 11 Name",null,"ENTER TEXT"]
[null,null,"Zone Type",null,"DROP DOWN LIST CHOICE ----->"]
[null,null,"Constant Number",null,0]
[null,null,"Hide Constant \\ Bypass",null,"No"]
[null,null,"Sensor Type",null,"DROP DOWN LIST CHOICE ----->"]
[null,null,"Zone 12 Name",null,"ENTER TEXT"]
[null,null,"Zone Type",null,"DROP DOWN LIST CHOICE ----->"]
[null,null,"Constant Number",null,0]
[null,null,"Hide Constant \\ Bypass",null,"No"]
[null,null,"Sensor Type",null,"DROP DOWN LIST CHOICE ----->"]
[null,null,"Zone 13 Name",null,"ENTER TEXT"]
[null,null,"Zone Type",null,"DROP DOWN LIST CHOICE ----->"]
[null,null,"Constant Number",null,0]
[null,null,"Hide Constant \\ Bypass",null,"No"]
[null,null,"Sensor Type",null,"DROP DOWN LIST CHOICE ----->"]
[null,null,"Zone 14 Name",null,"ENTER TEXT"]
[null,null,"Zone Type",null,"DROP DOWN LIST CHOICE ----->"]
[null,null,"Constant Number",null,0]
[null,null,"Hide Constant \\ Bypass",null,"No"]
[null,null,"Sensor Type",null,"DROP DOWN LIST CHOICE ----->"]
[]
[]
[]
[null,null,"Controlling Temperature","[ Yes / No ]","Yes"]
[null,null,"Filter Inspection","[ Time Between Alert ]","3 MONTHS"]
[null,null,"Lock Temperature","[ Yes / No ]","YES"]
[null,null,"Maximum Set Point Temp","[ MIN 15 – MAX 30 ]",30]
[null,null,"Minimum Set Point Temp","[ MIN 15 – MAX 30 ]",15]
[null,null,"Lock Airflow","[ Yes / No ]","NO"]
[null,null,"Lock Minimum Airflow","[ Yes / No ]","YES"]
[]
[null,null,"System Lockout","[ Yes / No ]","NO"]
[null,null,"Lockout Code","[ Max Six Digit Code ]",123456]
[null,null,"Number of Days for Lockout","[ Max Six Digit Code ]",123456]
[]
[null,null,"Other Motor","[ Yes / No ]","NO"]
[null,null,"Damper Control","[ Enter 0 for Auto ]"]
[null,null,"Damper Time in Seconds","[ MIN 0 – MAX 255 ]",0]
[]
[]
[]
[null,null,"ENTER TEXT"]

{"sheet":"PRINT","index":1,"n_rows":128,"n_cols":2,"rows_kept":128,"cut":false,"hidden":false,"merged":[]}
["PURCHASE ORDER DETAILS"]
[{"$f":"'AC SYSTEMS'!C5","v":"Purchase Order Number"},{"$f":"'AC SYSTEMS'!E5","v":"ENTER TEXT"}]
[{"$f":"'AC SYSTEMS'!C6","v":"Company Name"},{"$f":"'AC SYSTEMS'!E6","v":"ENTER TEXT"}]
[{"$f":"'AC SYSTEMS'!C7","v":"Clients Install Address"},{"$f":"'AC SYSTEMS'!E7","v":"ENTER TEXT"}]
["SYSTEM INFORMATION"]
[{"$f":"'AC SYSTEMS'!C11","v":"Address\\Client Name for Tag Line 1"},{"$f":"'AC SYSTEMS'!E11","v":"ENTER TEXT"}]
[{"$f":"'AC SYSTEMS'!C12","v":"System Name for Tag Line 2"},{"$f":"'AC SYSTEMS'!E12","v":"ENTER TEXT"}]
[{"$f":"'AC SYSTEMS'!C13","v":"iSave Enabled"},{"$f":"'AC SYSTEMS'!E13","v":"NO"}]
[{"$f":"'AC SYSTEMS'!C14","v":"Number of Zones"},{"$f":"'AC SYSTEMS'!E14","v":8}]
[{"$f":"'AC SYSTEMS'!C15","v":"Number of Constants"},{"$f":"'AC SYSTEMS'!E15","v":1}]
["A/C UNIT INFORMATION"]
[{"$f":"'AC SYSTEMS'!C19","v":"Controlling Sensor"},{"$f":"'AC SYSTEMS'!E19","v":"DROP DOWN LIST CHOICE ----->"}]
[{"$f":"'AC SYSTEMS'!C20","v":"Unit Auto Off"},{"$f":"'AC SYSTEMS'!E20","v":"OFF"}]
[{"$f":"'AC SYSTEMS'!C21","v":"Fan Auto Mode"},{"$f":"'AC SYSTEMS'!E21","v":"NO"}]
[{"$f":"'AC SYSTEMS'!C22","v":"Unit Capacity(kW)"},{"$f":"'AC SYSTEMS'!E22","v":14}]
[{"$f":"'AC SYSTEMS'!C23","v":"Fan Airflow (Litres/Second)"},{"$f":"'AC SYSTEMS'!E23","v":1000}]
[{"$f":"'AC SYSTEMS'!C24","v":"Select Fan Type"},{"$f":"'AC SYSTEMS'!E24","v":"DROP DOWN LIST CHOICE ----->"}]
[{"$f":"'AC SYSTEMS'!C25","v":"Zone Area Setup"}]
[{"$f":"'AC SYSTEMS'!C27","v":"Zone 1 Area m2"},{"$f":"'AC SYSTEMS'!E27","v":0}]
[{"$f":"'AC SYSTEMS'!C28","v":"Zone 2 Area m2"},{"$f":"'AC SYSTEMS'!E28","v":0}]
[{"$f":"'AC SYSTEMS'!C29","v":"Zone 3 Area m2"},{"$f":"'AC SYSTEMS'!E29","v":0}]
[{"$f":"'AC SYSTEMS'!C30","v":"Zone 4 Area m2"},{"$f":"'AC SYSTEMS'!E30","v":0}]
[{"$f":"'AC SYSTEMS'!C31","v":"Zone 5 Area m2"},{"$f":"'AC SYSTEMS'!E31","v":0}]
[{"$f":"'AC SYSTEMS'!C32","v":"Zone 6 Area m2"},{"$f":"'AC SYSTEMS'!E32","v":0}]
[{"$f":"'AC SYSTEMS'!C33","v":"Zone 7 Area m2"},{"$f":"'AC SYSTEMS'!E33","v":0}]
[{"$f":"'AC SYSTEMS'!C34","v":"Zone 8 Area m2"},{"$f":"'AC SYSTEMS'!E34","v":0}]
[{"$f":"'AC SYSTEMS'!C35","v":"Zone 9 Area m2"},{"$f":"'AC SYSTEMS'!E35","v":0}]
[{"$f":"'AC SYSTEMS'!C36","v":"Zone 10 Area m2"},{"$f":"'AC SYSTEMS'!E36","v":0}]
[{"$f":"'AC SYSTEMS'!C37","v":"Zone 11 Area m2"},{"$f":"'AC SYSTEMS'!E37","v":0}]
[{"$f":"'AC SYSTEMS'!C38","v":"Zone 12 Area m2"},{"$f":"'AC SYSTEMS'!E38","v":0}]
[{"$f":"'AC SYSTEMS'!C39","v":"Zone 13 Area m2"},{"$f":"'AC SYSTEMS'!E39","v":0}]
[{"$f":"'AC SYSTEMS'!C40","v":"Zone 14 Area m2"},{"$f":"'AC SYSTEMS'!E40","v":0}]
[{"$f":"'AC SYSTEMS'!C42","v":"Master/Slave Options"}]
[{"$f":"'AC SYSTEMS'!C44","v":"iZONE Unit Control"}]
[{"$f":"'AC SYSTEMS'!C45","v":"ON/OFF"},{"$f":"'AC SYSTEMS'!E45","v":"On"}]
[{"$f":"'AC SYSTEMS'!C46","v":"MODE"},{"$f":"'AC SYSTEMS'!E46","v":"On"}]
[{"$f":"'AC SYSTEMS'!C47","v":"FAN"},{"$f":"'AC SYSTEMS'!E47","v":"On"}]
[{"$f":"'AC SYSTEMS'!C48","v":"SETPOINT"},{"$f":"'AC SYSTEMS'!E48","v":"On"}]
[{"$f":"'AC SYSTEMS'!C49","v":"Other Unit Control"}]
[{"$f":"'AC SYSTEMS'!C50","v":"ON/OFF"},{"$f":"'AC SYSTEMS'!E50","v":"Off"}]
[{"$f":"'AC SYSTEMS'!C51","v":"MODE"},{"$f":"'AC SYSTEMS'!E51","v":"Off"}]
[{"$f":"'AC SYSTEMS'!C52","v":"FAN"},{"$f":"'AC SYSTEMS'!E52","v":"Off"}]
[{"$f":"'AC SYSTEMS'!C53","v":"SETPOINT"},{"$f":"'AC SYSTEMS'!E53","v":"Off"}]
["ZONE SETUP"]
[{"$f":"'AC SYSTEMS'!C58","v":"Zone 1 Name"},{"$f":"'AC SYSTEMS'!E58","v":"ENTER TEXT"}]
[{"$f":"'AC SYSTEMS'!C59","v":"Zone Type"},{"$f":"'AC SYSTEMS'!E59","v":"DROP DOWN LIST CHOICE ----->"}]
[{"$f":"'AC SYSTEMS'!C60","v":"Constant Number"},{"$f":"'AC SYSTEMS'!E60","v":1}]
[{"$f":"'AC SYSTEMS'!C61","v":"Hide Constant \\ Bypass"},{"$f":"'AC SYSTEMS'!E61","v":"NO"}]
[{"$f":"'AC SYSTEMS'!C62","v":"Sensor Type"},{"$f":"'AC SYSTEMS'!E62","v":"DROP DOWN LIST CHOICE ----->"}]
[{"$f":"'AC SYSTEMS'!C63","v":"Zone 2 Name"},{"$f":"'AC SYSTEMS'!E63","v":"ENTER TEXT"}]
[{"$f":"'AC SYSTEMS'!C64","v":"Zone Type"},{"$f":"'AC SYSTEMS'!E64","v":"DROP DOWN LIST CHOICE ----->"}]
[{"$f":"'AC SYSTEMS'!C65","v":"Constant Number"},{"$f":"'AC SYSTEMS'!E65","v":0}]
[{"$f":"'AC SYSTEMS'!C66","v":"Hide Constant \\ Bypass"},{"$f":"'AC SYSTEMS'!E66","v":"NO"}]
[{"$f":"'AC SYSTEMS'!C67","v":"Sensor Type"},{"$f":"'AC SYSTEMS'!E67","v":"DROP DOWN LIST CHOICE ----->"}]
[{"$f":"'AC SYSTEMS'!C68","v":"Zone 3 Name"},{"$f":"'AC SYSTEMS'!E68","v":"ENTER TEXT"}]
[{"$f":"'AC SYSTEMS'!C69","v":"Zone Type"},{"$f":"'AC SYSTEMS'!E69","v":"DROP DOWN LIST CHOICE ----->"}]
[{"$f":"'AC SYSTEMS'!C70","v":"Constant Number"},{"$f":"'AC SYSTEMS'!E70","v":0}]
[{"$f":"'AC SYSTEMS'!C71","v":"Hide Constant \\ Bypass"},{"$f":"'AC SYSTEMS'!E71","v":"No"}]
[{"$f":"'AC SYSTEMS'!C72","v":"Sensor Type"},{"$f":"'AC SYSTEMS'!E72","v":"WIRELESS SENSOR"}]
[{"$f":"'AC SYSTEMS'!C73","v":"Zone 4 Name"},{"$f":"'AC SYSTEMS'!E73","v":"ENTER TEXT"}]
[{"$f":"'AC SYSTEMS'!C74","v":"Zone Type"},{"$f":"'AC SYSTEMS'!E74","v":"DROP DOWN LIST CHOICE ----->"}]
[{"$f":"'AC SYSTEMS'!C75","v":"Constant Number"},{"$f":"'AC SYSTEMS'!E75","v":0}]
[{"$f":"'AC SYSTEMS'!C76","v":"Hide Constant \\ Bypass"},{"$f":"'AC SYSTEMS'!E76","v":"No"}]
[{"$f":"'AC SYSTEMS'!C77","v":"Sensor Type"},{"$f":"'AC SYSTEMS'!E77","v":"DROP DOWN LIST CHOICE ----->"}]
[{"$f":"'AC SYSTEMS'!C78","v":"Zone 5 Name"},{"$f":"'AC SYSTEMS'!E78","v":"ENTER TEXT"}]
[{"$f":"'AC SYSTEMS'!C79","v":"Zone Type"},{"$f":"'AC SYSTEMS'!E79","v":"DROP DOWN LIST CHOICE ----->"}]
[{"$f":"'AC SYSTEMS'!C80","v":"Constant Number"},{"$f":"'AC SYSTEMS'!E80","v":0}]
[{"$f":"'AC SYSTEMS'!C81","v":"Hide Constant \\ Bypass"},{"$f":"'AC SYSTEMS'!E81","v":"No"}]
[{"$f":"'AC SYSTEMS'!C82","v":"Sensor Type"},{"$f":"'AC SYSTEMS'!E82","v":"DROP DOWN LIST CHOICE ----->"}]
[{"$f":"'AC SYSTEMS'!C83","v":"Zone 6 Name"},{"$f":"'AC SYSTEMS'!E83","v":"ENTER TEXT"}]
[{"$f":"'AC SYSTEMS'!C84","v":"Zone Type"},{"$f":"'AC SYSTEMS'!E84","v":"DROP DOWN LIST CHOICE ----->"}]
[{"$f":"'AC SYSTEMS'!C85","v":"Constant Number"},{"$f":"'AC SYSTEMS'!E85","v":0}]
[{"$f":"'AC SYSTEMS'!C86","v":"Hide Constant \\ Bypass"},{"$f":"'AC SYSTEMS'!E86","v":"No"}]
[{"$f":"'AC SYSTEMS'!C87","v":"Sensor Type"},{"$f":"'AC SYSTEMS'!E87","v":"DROP DOWN LIST CHOICE ----->"}]
[{"$f":"'AC SYSTEMS'!C88","v":"Zone 7 Name"},{"$f":"'AC SYSTEMS'!E88","v":"ENTER TEXT"}]
[{"$f":"'AC SYSTEMS'!C89","v":"Zone Type"},{"$f":"'AC SYSTEMS'!E89","v":"DROP DOWN LIST CHOICE ----->"}]
[{"$f":"'AC SYSTEMS'!C90","v":"Constant Number"},{"$f":"'AC SYSTEMS'!E90","v":0}]
[{"$f":"'AC SYSTEMS'!C91","v":"Hide Constant \\ Bypass"},{"$f":"'AC SYSTEMS'!E91","v":"No"}]
[{"$f":"'AC SYSTEMS'!C92","v":"Sensor Type"},{"$f":"'AC SYSTEMS'!E92","v":"DROP DOWN LIST CHOICE ----->"}]
[{"$f":"'AC SYSTEMS'!C93","v":"Zone 8 Name"},{"$f":"'AC SYSTEMS'!E93","v":"ENTER TEXT"}]
[{"$f":"'AC SYSTEMS'!C94","v":"Zone Type"},{"$f":"'AC SYSTEMS'!E94","v":"DROP DOWN LIST CHOICE ----->"}]
[{"$f":"'AC SYSTEMS'!C95","v":"Constant Number"},{"$f":"'AC SYSTEMS'!E95","v":0}]
[{"$f":"'AC SYSTEMS'!C96","v":"Hide Constant \\ Bypass"},{"$f":"'AC SYSTEMS'!E96","v":"No"}]
[{"$f":"'AC SYSTEMS'!C97","v":"Sensor Type"},{"$f":"'AC SYSTEMS'!E97","v":"DROP DOWN LIST CHOICE ----->"}]
[{"$f":"'AC SYSTEMS'!C98","v":"Zone 9 Name"},{"$f":"'AC SYSTEMS'!E98","v":"ENTER TEXT"}]
[{"$f":"'AC SYSTEMS'!C99","v":"Zone Type"},{"$f":"'AC SYSTEMS'!E99","v":"DROP DOWN LIST CHOICE ----->"}]
[{"$f":"'AC SYSTEMS'!C100","v":"Constant Number"},{"$f":"'AC SYSTEMS'!E100","v":0}]
[{"$f":"'AC SYSTEMS'!C101","v":"Hide Constant \\ Bypass"},{"$f":"'AC SYSTEMS'!E101","v":"No"}]
[{"$f":"'AC SYSTEMS'!C102","v":"Sensor Type"},{"$f":"'AC SYSTEMS'!E102","v":"DROP DOWN LIST CHOICE ----->"}]
[{"$f":"'AC SYSTEMS'!C103","v":"Zone 10 Name"},{"$f":"'AC SYSTEMS'!E103","v":"ENTER TEXT"}]
[{"$f":"'AC SYSTEMS'!C104","v":"Zone Type"},{"$f":"'AC SYSTEMS'!E104","v":"DROP DOWN LIST CHOICE ----->"}]
[{"$f":"'AC SYSTEMS'!C105","v":"Constant Number"},{"$f":"'AC SYSTEMS'!E105","v":0}]
[{"$f":"'AC SYSTEMS'!C106","v":"Hide Constant \\ Bypass"},{"$f":"'AC SYSTEMS'!E106","v":"No"}]
[{"$f":"'AC SYSTEMS'!C107","v":"Sensor Type"},{"$f":"'AC SYSTEMS'!E107","v":"DROP DOWN LIST CHOICE ----->"}]
[{"$f":"'AC SYSTEMS'!C108","v":"Zone 11 Name"},{"$f":"'AC SYSTEMS'!E108","v":"ENTER TEXT"}]
[{"$f":"'AC SYSTEMS'!C109","v":"Zone Type"},{"$f":"'AC SYSTEMS'!E109","v":"DROP DOWN LIST CHOICE ----->"}]
[{"$f":"'AC SYSTEMS'!C110","v":"Constant Number"},{"$f":"'AC SYSTEMS'!E110","v":0}]
[{"$f":"'AC SYSTEMS'!C111","v":"Hide Constant \\ Bypass"},{"$f":"'AC SYSTEMS'!E111","v":"No"}]
[{"$f":"'AC SYSTEMS'!C112","v":"Sensor Type"},{"$f":"'AC SYSTEMS'!E112","v":"DROP DOWN LIST CHOICE ----->"}]
[{"$f":"'AC SYSTEMS'!C113","v":"Zone 12 Name"},{"$f":"'AC SYSTEMS'!E113","v":"ENTER TEXT"}]
[{"$f":"'AC SYSTEMS'!C114","v":"Zone Type"},{"$f":"'AC SYSTEMS'!E114","v":"DROP DOWN LIST CHOICE ----->"}]
[{"$f":"'AC SYSTEMS'!C115","v":"Constant Number"},{"$f":"'AC SYSTEMS'!E115","v":0}]
[{"$f":"'AC SYSTEMS'!C116","v":"Hide Constant \\ Bypass"},{"$f":"'AC SYSTEMS'!E116","v":"No"}]
[{"$f":"'AC SYSTEMS'!C117","v":"Sensor Type"},{"$f":"'AC SYSTEMS'!E117","v":"DROP DOWN LIST CHOICE ----->"}]
[{"$f":"'AC SYSTEMS'!C118","v":"Zone 13 Name"},{"$f":"'AC SYSTEMS'!E118","v":"ENTER TEXT"}]
[{"$f":"'AC SYSTEMS'!C119","v":"Zone Type"},{"$f":"'AC SYSTEMS'!E119","v":"DROP DOWN LIST CHOICE ----->"}]
[{"$f":"'AC SYSTEMS'!C120","v":"Constant Number"},{"$f":"'AC SYSTEMS'!E120","v":0}]
[{"$f":"'AC SYSTEMS'!C121","v":"Hide Constant \\ Bypass"},{"$f":"'AC SYSTEMS'!E121","v":"No"}]
[{"$f":"'AC SYSTEMS'!C122","v":"Sensor Type"},{"$f":"'AC SYSTEMS'!E122","v":"DROP DOWN LIST CHOICE ----->"}]
[{"$f":"'AC SYSTEMS'!C123","v":"Zone 14 Name"},{"$f":"'AC SYSTEMS'!E123","v":"ENTER TEXT"}]
[{"$f":"'AC SYSTEMS'!C124","v":"Zone Type"},{"$f":"'AC SYSTEMS'!E124","v":"DROP DOWN LIST CHOICE ----->"}]
[{"$f":"'AC SYSTEMS'!C125","v":"Constant Number"},{"$f":"'AC SYSTEMS'!E125","v":0}]
[{"$f":"'AC SYSTEMS'!C126","v":"Hide Constant \\ Bypass"},{"$f":"'AC SYSTEMS'!E126","v":"No"}]
[{"$f":"'AC SYSTEMS'!C127","v":"Sensor Type"},{"$f":"'AC SYSTEMS'!E127","v":"DROP DOWN LIST CHOICE ----->"}]
["ADDITIONAL OPTIONS"]
[{"$f":"'AC SYSTEMS'!C131","v":"Controlling Temperature"},{"$f":"'AC SYSTEMS'!E131","v":"Yes"}]
[{"$f":"'AC SYSTEMS'!C132","v":"Filter Inspection"},{"$f":"'AC SYSTEMS'!E132","v":"3 MONTHS"}]
[{"$f":"'AC SYSTEMS'!C133","v":"Lock Temperature"},{"$f":"'AC SYSTEMS'!E133","v":"YES"}]
[{"$f":"'AC SYSTEMS'!C134","v":"Maximum Set Point Temp"},{"$f":"'AC SYSTEMS'!E134","v":30}]
[{"$f":"'AC SYSTEMS'!C135","v":"Minimum Set Point Temp"},{"$f":"'AC SYSTEMS'!E135","v":15}]
[{"$f":"'AC SYSTEMS'!C136","v":"Lock Airflow"},{"$f":"'AC SYSTEMS'!E136","v":"NO"}]
[{"$f":"'AC SYSTEMS'!C137","v":"Lock Minimum Airflow"},{"$f":"'AC SYSTEMS'!E137","v":"YES"}]
[{"$f":"'AC SYSTEMS'!C139","v":"System Lockout"},{"$f":"'AC SYSTEMS'!E139","v":"NO"}]
[{"$f":"'AC SYSTEMS'!C140","v":"Lockout Code"},{"$f":"'AC SYSTEMS'!E140","v":123456}]
[{"$f":"'AC SYSTEMS'!C141","v":"Number of Days for Lockout"},{"$f":"'AC SYSTEMS'!E141","v":123456}]
[{"$f":"'AC SYSTEMS'!C143","v":"Other Motor"},{"$f":"'AC SYSTEMS'!E143","v":"NO"}]
[{"$f":"'AC SYSTEMS'!C144","v":"Damper Control"},{"$f":"'AC SYSTEMS'!E144","v":0}]
[{"$f":"'AC SYSTEMS'!C145","v":"Damper Time in Seconds"},{"$f":"'AC SYSTEMS'!E145","v":0}]